bitfinex-derivatives/quotes_BTCF0:USTF0_20241110
["timestamp","ask_amount","ask_price","bid_price","bid_amount"]
[1731273603563,0.24664954,79345.0,79340.0,0.062997]
[1731273604365,0.042805,79344.0,79337.0,0.35286328]
[1731273604566,0.24664954,79345.0,79337.0,0.35286328]
[1731273604872,0.24664954,79345.0,79328.0,0.3608]
[1731273604873,0.3608,79342.0,79328.0,0.3608]
[1731273605161,0.04246587,79341.0,79317.0,0.3608]
[1731273605362,0.04246587,79340.0,79326.0,0.063008]
[1731273605565,0.3608,79331.0,79317.0,0.05228344]
[1731273605763,0.18296191,79328.0,79312.0,0.00189123]
[1731273605967,0.18296191,79320.0,79312.0,0.00189123]
[1731273606161,0.3608,79316.0,79312.0,0.00189123]
[1731273606463,0.423817,79316.0,79312.0,0.00189123]
[1731273606770,0.423817,79316.0,79292.0,9.674e-05]
[1731273606771,0.06302,79312.0,79292.0,9.674e-05]
[1731273607069,0.3608,79304.0,79292.0,9.674e-05]
[1731273607569,0.3608,79302.0,79292.0,9.674e-05]
[1731273607866,0.54376191,79295.0,79292.0,9.674e-05]
[1731273608161,0.54376191,79295.0,79274.0,0.3608]
[1731273608162,0.25202987,79294.0,79274.0,0.3608]
[1731273608362,0.01486987,79293.0,79274.0,0.3608]
[1731273608668,0.3608,79287.0,79269.0,0.063054]
[1731273608966,0.3608,79287.0,79267.0,0.1215118]
[1731273608967,0.54376191,79287.0,79270.0,0.18800635]
[1731273609263,0.3608,79278.0,79268.0,0.18800635]
[1731273609459,0.00014977,79277.0,79273.0,0.3608]
[1731273609654,0.00014977,79277.0,79275.0,0.24601091]
[1731273609858,0.23716,79294.0,79276.0,0.1138]
[1731273610058,0.23716,79294.0,79283.0,0.54376191]
[1731273610254,0.23716,79294.0,79293.0,0.3608]
[1731273610458,0.3608,79310.0,79293.0,0.3608]
[1731273610664,0.23716,79303.0,79300.0,0.3608]
[1731273611067,0.23716,79303.0,79296.0,0.063032]
[1731273611368,0.23716,79303.0,79300.0,0.063029]
[1731273611565,0.3608,79311.0,79294.0,0.3608]
[1731273611764,0.598,79311.0,79303.0,0.063027]
[1731273612168,0.2372,79311.0,79294.0,0.3608]
[1731273612371,0.00011982,79303.0,79294.0,0.41465338]
[1731273612568,0.00011982,79303.0,79292.0,0.3608]
[1731273612875,0.00011982,79303.0,79293.0,0.063035]
[1731273613873,0.00011982,79303.0,79292.0,0.3608]
[1731273614077,0.18296191,79296.0,79285.0,0.00011206]
[1731273614370,0.3608,79297.0,79279.0,0.3608]
[1731273614568,0.03988029,79296.0,79280.0,0.063045]
[1731273614773,0.03988029,79295.0,79280.0,0.063045]
[1731273614965,0.03988029,79294.0,79279.0,0.3608]
[1731273615166,0.18296191,79296.0,79279.0,0.3608]
[1731273615371,0.18296191,79288.0,79279.0,0.3608]
[1731273615562,0.2372,79287.0,79279.0,0.3608]
[1731273616870,0.2372,79287.0,79271.0,0.063051]
[1731273617369,0.2372,79287.0,79271.0,0.25156319]
[1731273617570,0.1072,79286.0,79271.0,0.25156319]
[1731273618062,0.1072,79286.0,79271.0,0.18851219]
[1731273618371,0.1072,79286.0,79268.0,0.05254128]
[1731273618970,0.1072,79286.0,79273.0,0.06305]
[1731273619170,0.1072,79286.0,79269.0,0.18939686]
[1731273619368,0.2372,79285.0,79276.0,0.063048]
[1731273620067,0.0178402,79284.0,79276.0,0.063048]
[1731273620369,0.2372,79285.0,79273.0,0.3608]
[1731273620370,0.0178402,79283.0,79273.0,0.3608]
[1731273620567,0.0178402,79282.0,79273.0,0.06305]
[1731273620872,0.18296191,79280.0,79266.0,0.3608]
[1731273621063,0.18296191,79280.0,79265.0,0.3608]
[1731273621064,0.0178402,79279.0,79265.0,0.3608]
[1731273621263,0.18296191,79272.0,79263.0,0.00010593]
[1731273621465,0.3608,79268.0,79263.0,0.00010593]
[1731273621675,0.0178402,79267.0,79263.0,0.00010593]
[1731273622176,0.0178402,79267.0,79264.0,0.063058]
[1731273622373,0.0178402,79274.0,79266.0,0.063056]
[1731273622566,0.3608,79275.0,79266.0,0.063056]
[1731273622870,0.01890127,79274.0,79263.0,0.00010593]
[1731273623068,0.01890127,79273.0,79263.0,0.00010593]
[1731273623266,0.01890127,79272.0,79263.0,0.00010593]
[1731273623466,0.01890127,79271.0,79263.0,0.00010593]
[1731273623668,0.01890127,79270.0,79263.0,0.00010593]
[1731273623878,0.01890127,79269.0,79266.0,0.063056]
[1731273624180,0.01890127,79268.0,79266.0,0.063056]
[1731273624374,0.229,79273.0,79266.0,0.063056]
[1731273624375,0.01890127,79267.0,79266.0,0.063056]
[1731273624572,0.01890127,79272.0,79266.0,0.3608]
[1731273624772,0.01928129,79271.0,79267.0,0.3528506]
[1731273624978,0.01928129,79270.0,79267.0,0.5512224]
[1731273625278,0.3608,79298.0,79270.0,0.063053]
[1731273625479,0.3608,79298.0,79268.0,0.56698626]
[1731273625480,0.292011,79324.0,79307.0,0.063023]
[1731273625680,0.3608,79325.0,79310.0,0.3608]
[1731273625867,0.229,79329.0,79319.0,0.3608]
[1731273626069,0.229,79329.0,79311.0,0.18829728]
[1731273626372,0.54376191,79323.0,79301.0,0.3608]
[1731273626676,0.54376191,79323.0,79312.0,0.19003054]
[1731273626677,0.18296191,79314.0,79312.0,0.19003054]
[1731273626872,0.18296191,79314.0,79301.0,0.3608]
[1731273627067,0.3608,79308.0,79301.0,0.3608]
[1731273627472,0.24597991,79314.0,79301.0,0.3608]
[1731273627671,0.063018,79314.0,79301.0,0.3608]
[1731273627969,0.3608,79316.0,79301.0,0.3608]
[1731273628772,0.41686191,79322.0,79301.0,0.3608]
[1731273629375,0.3608,79315.0,79301.0,0.3608]
[1731273629669,0.41686191,79322.0,79303.0,0.063026]
[1731273629879,0.2339,79322.0,79301.0,0.3608]
[1731273630174,0.000116,79328.0,79319.0,0.3608]
[1731273630379,0.000116,79328.0,79310.0,0.3608]
[1731273630380,0.360916,79328.0,79310.0,0.3608]
[1731273630586,0.360916,79328.0,79319.0,0.063014]
[1731273630773,0.360916,79328.0,79310.0,0.3608]
[1731273630774,0.360916,79328.0,79311.0,0.19024603]
[1731273630972,0.360916,79328.0,79317.0,0.063015]
[1731273631279,0.360916,79328.0,79312.0,0.19024603]
[1731273631486,0.360916,79328.0,79312.0,0.063019]
[1731273631686,0.360916,79328.0,79313.0,0.063018]
[1731273631876,0.360916,79328.0,79310.0,0.3608]
[1731273632182,0.3608,79313.0,79312.0,0.18966294]
[1731273632483,0.06302,79312.0,79292.0,0.063035]
[1731273632779,0.063022,79310.0,79292.0,0.063035]
[1731273632981,0.3608,79306.0,79292.0,0.063035]
[1731273633479,0.063028,79302.0,79291.0,0.1137]
[1731273633778,0.3608,79306.0,79297.0,0.063031]
[1731273634185,0.3608,79306.0,79297.0,0.063032]
[1731273634483,0.06490387,79322.0,79305.0,0.3608]
[1731273634484,0.22068,79318.0,79305.0,0.3608]
[1731273634681,0.00189187,79322.0,79320.0,0.063013]
[1731273635269,0.01679417,79321.0,79320.0,0.063013]
[1731273635483,0.01679417,79321.0,79320.0,0.3608]
[1731273635874,0.01679417,79321.0,79314.0,0.1128]
[1731273636082,0.01679417,79320.0,79314.0,0.1128]
[1731273636380,0.01679417,79319.0,79318.0,0.063015]
[1731273636574,0.01679417,79321.0,79320.0,0.063013]
[1731273636769,0.01755559,79321.0,79320.0,0.063013]
[1731273636987,0.01755559,79321.0,79320.0,0.25286855]
[1731273637682,0.01755559,79321.0,79320.0,0.4425413]
[1731273638674,0.01755559,79321.0,79320.0,0.25268575]
[1731273639887,0.000116,79328.0,79327.0,0.063001]
[1731273640083,0.000116,79328.0,79327.0,0.60676291]
[1731273640476,0.000116,79328.0,79327.0,0.423801]
[1731273641981,0.000116,79328.0,79327.0,0.3608]
[1731273644783,0.063117,79328.0,79327.0,0.3608]
[1731273644982,0.063117,79328.0,79325.0,0.05313631]
[1731273645180,0.063002,79327.0,79320.0,0.08823448]
[1731273645581,0.3608,79344.0,79326.0,0.36592382]
[1731273645781,0.3608,79362.0,79349.0,0.062984]
[1731273645981,0.32248,79384.0,79358.0,0.062977]
[1731273645982,0.423772,79365.0,79358.0,0.062977]
[1731273646181,0.423772,79365.0,79349.0,0.37808]
[1731273646182,0.062972,79365.0,79359.0,0.3608]
[1731273646384,0.3608,79382.0,79359.0,0.3608]
[1731273646385,0.062967,79371.0,79359.0,0.3608]
[1731273646585,0.062967,79371.0,79370.0,0.3608]
[1731273646786,0.00012284,79371.0,79370.0,0.3608]
[1731273648092,0.00012284,79371.0,79359.0,0.36148]
[1731273648293,0.06297,79367.0,79359.0,0.3608]
[1731273648598,0.06297,79367.0,79359.0,0.41330941]
[1731273649590,0.00012284,79371.0,79359.0,0.41330941]
[1731273650387,0.00012284,79371.0,79368.0,0.3608]
[1731273652092,0.00012284,79371.0,79370.0,0.423767]
[1731273652491,0.00012284,79371.0,79368.0,0.00064]
[1731273652701,0.3608,79381.0,79368.0,0.05413698]
[1731273652702,0.06268384,79379.0,79368.0,0.05413698]
[1731273652991,0.06268384,79379.0,79367.0,0.3608]
[1731273653303,0.3608,79381.0,79367.0,0.3608]
[1731273653609,0.3608,79381.0,79367.0,0.423769]
[1731273653792,0.00012608,79380.0,79367.0,0.423769]
[1731273654188,0.00012608,79380.0,79376.0,0.3608]
[1731273654593,0.00012608,79380.0,79367.0,0.36144]
[1731273654892,0.062965,79374.0,79367.0,0.3608]
[1731273655596,0.00012608,79380.0,79367.0,0.3608]
[1731273656101,0.00012608,79380.0,79375.0,0.3608]
[1731273656396,0.062962,79376.0,79366.0,0.02520948]
[1731273656694,0.1116,79379.0,79366.0,0.02520948]
[1731273656997,0.062967,79371.0,79366.0,0.02520948]
[1731273657393,0.3608,79377.0,79366.0,0.02520948]
[1731273657692,0.062964,79374.0,79366.0,0.38600948]
[1731273657897,0.062964,79374.0,79366.0,0.02520948]
[1731273658094,0.062964,79374.0,79367.0,0.3608]
[1731273658290,0.11244,79379.0,79367.0,0.3608]
[1731273658599,0.4724,79379.0,79366.0,0.02520948]
[1731273658796,0.062966,79372.0,79366.0,0.02520948]
[1731273659004,0.062966,79372.0,79360.0,0.0553066]
[1731273659005,0.00012608,79380.0,79360.0,0.0553066]
[1731273659294,0.00012608,79380.0,79379.0,0.54376191]
[1731273659690,0.00012608,79380.0,79379.0,0.3608]
[1731273661292,0.00012608,79380.0,79379.0,0.54376191]
[1731273661786,0.00012608,79380.0,79379.0,0.59784692]
[1731273662401,0.00012608,79380.0,79379.0,0.41488501]
[1731273663204,0.01461995,79380.0,79379.0,0.41488501]
[1731273663393,0.01461995,79380.0,79379.0,0.3608]
[1731273663594,0.062962,79376.0,79375.0,0.05280035]
[1731273663794,0.062962,79376.0,79375.0,0.00011165]
[1731273664199,0.07780433,79376.0,79375.0,0.00011165]
[1731273664396,0.07780475,79376.0,79375.0,0.00011165]
[1731273664897,0.062962,79376.0,79375.0,0.00011165]
[1731273665099,0.07853901,79376.0,79375.0,0.00011165]
[1731273665394,0.07854283,79376.0,79375.0,0.00011165]
[1731273665597,0.062976,79360.0,79359.0,0.05302487]
[1731273665799,0.062976,79360.0,79349.0,0.3608]
[1731273665800,0.3608,79369.0,79349.0,0.3608]
[1731273665990,0.3608,79369.0,79350.0,0.18985596]
[1731273665991,0.1051,79368.0,79350.0,0.18985596]
[1731273666190,0.1051,79368.0,79339.0,0.36144]
[1731273666191,0.062977,79358.0,79339.0,0.36144]
[1731273666395,0.01511511,79357.0,79339.0,0.54376191]
[1731273666595,0.2038,79358.0,79340.0,0.18966446]
[1731273666788,0.0151225,79357.0,79340.0,0.18966446]
[1731273666996,0.062984,79349.0,79348.0,0.3608]
[1731273667388,0.2038,79358.0,79348.0,0.3608]
[1731273667590,0.062983,79351.0,79348.0,0.3608]
[1731273667992,0.2038,79358.0,79348.0,0.3608]
[1731273667993,0.062984,79349.0,79348.0,0.3608]
[1731273668399,0.062984,79349.0,79336.0,0.10859699]
[1731273668400,0.3608,79352.0,79336.0,9.699e-05]
[1731273668621,0.062993,79337.0,79336.0,9.699e-05]
[1731273668903,0.01663029,79337.0,79336.0,9.699e-05]
[1731273669199,0.01663029,79337.0,79336.0,0.18866359]
[1731273669393,0.01663029,79337.0,79336.0,0.18832378]
[1731273669595,0.01663291,79350.0,79336.0,1.05559865]
[1731273669795,0.00013165,79351.0,79349.0,0.423784]
[1731273670003,0.10699083,79368.0,79349.0,0.423784]
[1731273670004,0.062961,79378.0,79350.0,0.37808]
[1731273670204,0.10051806,79377.0,79370.0,0.18296191]
[1731273670394,0.062955,79386.0,79368.0,0.3608]
[1731273670395,0.0394781,79376.0,79368.0,0.3608]
[1731273670596,0.03981866,79375.0,79368.0,0.3608]
[1731273670797,0.54376191,79386.0,79368.0,0.3608]
[1731273670798,0.18296191,79378.0,79368.0,0.3608]
[1731273671003,0.0001136,79377.0,79367.0,0.3608]
[1731273671501,0.04021974,79376.0,79367.0,0.3608]
[1731273671701,0.04007045,79375.0,79367.0,0.3608]
[1731273671898,0.04007045,79374.0,79367.0,0.3608]
[1731273672105,0.0001136,79377.0,79374.0,0.3608]
[1731273672402,0.0403728,79376.0,79374.0,0.3608]
[1731273672604,0.0001136,79377.0,79374.0,0.3608]
[1731273672805,0.062963,79375.0,79374.0,0.3608]
[1731273673104,0.04044901,79375.0,79367.0,0.3608]
[1731273673309,0.04044901,79374.0,79367.0,0.3608]
[1731273673498,0.062969,79368.0,79360.0,0.05377642]
[1731273673697,0.3608,79376.0,79360.0,9.393e-05]
[1731273673996,0.3608,79369.0,79360.0,9.393e-05]
[1731273674192,0.062974,79362.0,79360.0,9.393e-05]
[1731273674405,0.08493222,79361.0,79360.0,9.393e-05]
[1731273674595,0.03971192,79361.0,79360.0,9.393e-05]
[1731273676606,0.062974,79362.0,79360.0,9.393e-05]
[1731273676800,0.3608,79369.0,79360.0,9.393e-05]
[1731273677104,0.3609136,79377.0,79367.0,0.3608]
[1731273677105,0.0009136,79377.0,79367.0,0.3608]
[1731273677406,0.0630756,79377.0,79367.0,0.3608]
[1731273678004,0.0001136,79377.0,79367.0,0.3608]
[1731273678311,0.3609136,79377.0,79367.0,0.3608]
[1731273679000,0.04103383,79376.0,79367.0,0.3608]
[1731273679204,0.0001136,79377.0,79375.0,0.3608]
[1731273679397,0.0001136,79377.0,79376.0,0.3608]
[1731273679994,0.01506588,79377.0,79376.0,0.3608]
[1731273683621,0.0563795,79377.0,79376.0,0.3608]
[1731273684011,0.04142722,79377.0,79376.0,0.3608]
[1731273684214,0.04142722,79377.0,79367.0,0.36152]
[1731273684507,0.04131362,79376.0,79370.0,0.062967]
[1731273684704,0.0001136,79377.0,79367.0,0.41335747]
[1731273684908,0.062942,79402.0,79367.0,0.41335747]
[1731273684909,0.00189027,79399.0,79376.0,0.60672391]
[1731273685107,0.00189027,79399.0,79391.0,0.3608]
[1731273685314,0.08981497,79398.0,79391.0,0.3608]
[1731273685612,0.08981497,79398.0,79369.0,0.3608]
[1731273685613,0.54376191,79392.0,79369.0,0.3608]
[1731273685802,0.3608,79384.0,79378.0,0.3608]
[1731273686006,0.04166197,79383.0,79369.0,0.3608]
[1731273686314,0.04154185,79382.0,79369.0,0.3608]
[1731273686500,0.18296191,79380.0,79377.0,0.00072]
[1731273686701,0.04154185,79379.0,79377.0,0.00072]
[1731273686903,0.04154185,79378.0,79369.0,0.05284191]
[1731273687108,0.18296191,79380.0,79358.0,0.0018901]
[1731273687109,0.04154185,79377.0,79358.0,0.0018901]
[1731273687311,0.18296191,79380.0,79358.0,0.0018901]
[1731273687312,0.04154185,79376.0,79358.0,0.0018901]
[1731273687613,0.04154185,79375.0,79360.0,0.0538378]
[1731273687815,0.3608,79371.0,79360.0,9.393e-05]
[1731273688004,0.18296191,79363.0,79360.0,9.393e-05]
[1731273688200,0.36710185,79362.0,79360.0,9.393e-05]
[1731273688414,0.04154185,79361.0,79360.0,9.393e-05]
[1731273689006,0.21196,79362.0,79360.0,9.393e-05]
[1731273690018,0.04015789,79361.0,79360.0,9.393e-05]
[1731273690517,0.41815789,79361.0,79360.0,9.393e-05]
[1731273690716,0.04015789,79361.0,79360.0,9.393e-05]
[1731273691312,0.03986703,79361.0,79360.0,9.393e-05]
[1731273692018,0.21196,79362.0,79360.0,9.393e-05]
[1731273692019,0.21196,79362.0,79360.0,0.36089393]
[1731273692416,0.21196,79362.0,79360.0,0.42386893]
[1731273693016,0.01455554,79361.0,79360.0,0.42386893]
[1731273694321,0.212,79374.0,79365.0,0.062971]
[1731273694619,0.212,79374.0,79368.0,0.3608]
[1731273695524,0.212,79374.0,79368.0,0.28989383]
[1731273696010,0.54376191,79369.0,79362.0,0.05270315]
[1731273696211,0.04081693,79368.0,79362.0,0.05270315]
[1731273696416,0.04081693,79367.0,79362.0,0.05270315]
[1731273696617,0.04081693,79367.0,79360.0,9.393e-05]
[1731273696618,0.04081693,79366.0,79360.0,9.393e-05]
[1731273696920,0.54376191,79361.0,79360.0,9.393e-05]
[1731273697112,0.54376191,79361.0,79355.0,0.05468852]
[1731273697418,0.54376191,79361.0,79344.0,0.423787]
[1731273697419,0.54376191,79361.0,79344.0,0.3608]
[1731273697622,0.3608,79354.0,79344.0,0.3608]
[1731273697819,0.3608,79354.0,79338.0,0.423792]
[1731273698123,0.0147407,79353.0,79338.0,0.44899953]
[1731273698322,0.0147407,79352.0,79338.0,0.44899953]
[1731273698636,0.3608,79345.0,79338.0,0.44899953]
[1731273698819,0.0147407,79344.0,79338.0,0.44899953]
[1731273699021,0.0147407,79343.0,79338.0,0.3608]
[1731273699320,0.3192,79360.0,79333.0,0.00189061]
[1731273699321,0.01483438,79342.0,79333.0,0.00189061]
[1731273699509,0.21199368,79342.0,79333.0,0.00189061]
[1731273699712,0.3608,79334.0,79333.0,0.00189061]
[1731273700115,0.3608,79334.0,79330.0,0.00011427]
[1731273700320,0.0147407,79333.0,79330.0,0.00011427]
[1731273701022,0.0147407,79332.0,79331.0,0.062998]
[1731273701226,9.368e-05,79342.0,79331.0,0.062998]
[1731273701227,9.368e-05,79342.0,79341.0,0.06299]
[1731273701411,9.368e-05,79342.0,79341.0,0.42379]
[1731273702023,0.01727023,79342.0,79341.0,0.42379]
[1731273702220,9.368e-05,79342.0,79341.0,0.42379]
[1731273702920,0.01727023,79342.0,79341.0,0.42379]
[1731273703511,9.368e-05,79342.0,79341.0,0.4770583]
[1731273703923,0.01727023,79342.0,79341.0,0.4770583]
[1731273705132,0.01727023,79342.0,79341.0,0.66511484]
[1731273705422,0.20404,79359.0,79341.0,1.04323484]
[1731273705616,0.20404,79359.0,79356.0,0.062978]
[1731273705617,0.01729455,79358.0,79356.0,0.062978]
[1731273705819,0.20404,79359.0,79358.0,0.062977]
[1731273706427,0.20419447,79359.0,79358.0,0.062977]
[1731273707119,0.00015447,79359.0,79358.0,0.062977]
[1731273707515,0.00189109,79374.0,79372.0,0.062965]
[1731273708126,0.00189109,79374.0,79359.0,0.1121]
[1731273708127,0.00189109,79374.0,79369.0,0.3608]
[1731273708526,9.527e-05,79373.0,79369.0,0.3608]
[1731273709231,9.527e-05,79373.0,79369.0,0.423767]
[1731273709528,9.527e-05,79373.0,79370.0,0.062967]
[1731273710134,9.527e-05,79373.0,79371.0,0.062966]
[1731273710634,9.527e-05,79373.0,79369.0,0.3608]
[1731273711731,9.527e-05,79373.0,79371.0,0.062966]
[1731273714223,9.527e-05,79373.0,79369.0,0.3608]
[1731273714828,9.527e-05,79373.0,79371.0,0.3608]
[1731273715131,9.527e-05,79373.0,79371.0,0.423766]
[1731273715734,0.0158994,79372.0,79371.0,0.423766]
[1731273717628,0.0158994,79372.0,79371.0,0.35287233]
[1731273719034,0.0158994,79372.0,79371.0,0.062966]
[1731273719234,9.527e-05,79373.0,79371.0,0.062966]
[1731273720139,0.0145276,79372.0,79371.0,0.062966]
[1731273720635,0.0145276,79372.0,79366.0,0.0521053]
[1731273720941,9.527e-05,79373.0,79364.0,0.062972]
[1731273720942,0.0145276,79371.0,79364.0,0.062972]
[1731273721440,0.062974,79362.0,79347.0,0.36144]
[1731273721631,0.2096876,79361.0,79351.0,0.05333131]
[1731273721827,0.2096876,79361.0,79348.0,0.062984]
[1731273722034,0.2096876,79361.0,79351.0,0.062982]
[1731273722035,0.0537646,79360.0,79351.0,0.062982]
[1731273722230,0.0145276,79359.0,79351.0,0.062982]
[1731273722432,0.0145276,79359.0,79337.0,0.3608]
[1731273722433,0.3608,79352.0,79338.0,0.062992]
[1731273722637,0.3608,79352.0,79339.0,0.063521]
[1731273722838,0.25807276,79351.0,79339.0,0.00053]
[1731273723039,0.18296191,79341.0,79339.0,0.00053]
[1731273723233,0.19516,79340.0,79339.0,0.00053]
[1731273724044,0.19531713,79340.0,79339.0,0.00053]
[1731273724240,0.20984473,79340.0,79339.0,0.00053]
[1731273724441,0.20984473,79340.0,79330.0,0.00011427]
[1731273724644,0.3608,79337.0,79330.0,0.00011427]
[1731273724845,0.0145276,79336.0,79330.0,0.00011427]
[1731273725342,0.0145276,79336.0,79332.0,0.3608]
[1731273725550,0.0145276,79339.0,79332.0,0.3608]
[1731273726040,0.0145276,79339.0,79338.0,0.062993]
[1731273726437,0.3608,79365.0,79339.0,0.37812]
[1731273726635,0.37816191,79366.0,79357.0,0.3608]
[1731273726834,0.37816191,79366.0,79349.0,0.062983]
[1731273727143,0.37816191,79366.0,79341.0,0.06299]
[1731273727144,0.18296191,79358.0,79341.0,0.06299]
[1731273727335,0.3608,79360.0,79339.0,0.1107]
[1731273727336,0.03904842,79357.0,79339.0,0.1107]
[1731273727540,0.00012149,79356.0,79350.0,0.062983]
[1731273727835,0.00012149,79356.0,79347.0,0.3608]
[1731273728036,0.00012149,79356.0,79355.0,0.423779]
[1731273728243,0.00012149,79356.0,79355.0,0.801819]
[1731273728547,0.00189109,79374.0,79371.0,0.062966]
[1731273728843,0.00189109,79374.0,79369.0,0.3608]
[1731273729637,0.00011253,79373.0,79369.0,0.3608]
[1731273729846,0.00011253,79373.0,79370.0,0.062967]
[1731273731038,0.00011253,79373.0,79369.0,0.3608]
[1731273731244,0.18307444,79373.0,79369.0,0.3608]
[1731273732149,0.00011253,79373.0,79370.0,0.062966]
[1731273732345,0.00011253,79373.0,79369.0,0.3608]
[1731273732541,0.00011253,79373.0,79372.0,0.062966]
[1731273735546,0.00011253,79373.0,79372.0,0.24592791]
[1731273735747,0.00011253,79373.0,79372.0,0.43578386]
[1731273735939,0.00011253,79373.0,79372.0,0.25282195]
[1731273736745,0.01637943,79373.0,79372.0,0.25282195]
[1731273737142,0.18712,79395.0,79373.0,0.37796]
[1731273737347,0.18712,79395.0,79372.0,0.3798469]
[1731273737348,0.18712,79395.0,79394.0,0.423748]
[1731273737554,0.18712,79395.0,79394.0,0.3608]
[1731273737752,0.1,79400.0,79394.0,0.3608]
[1731273737955,0.1,79400.0,79399.0,0.062944]
[1731273738253,0.10009112,79400.0,79399.0,0.062944]
[1731273747458,0.11577886,79400.0,79399.0,0.062944]
[1731273748056,0.11577886,79400.0,79394.0,0.77474393]
[1731273748356,0.01568774,79399.0,79394.0,0.77402393]
[1731273749755,0.062947,79396.0,79394.0,0.3608]
[1731273749957,0.199378,79398.0,79387.0,0.00011406]
[1731273749958,0.06295,79392.0,79387.0,0.00011406]
[1731273750163,0.01641609,79391.0,79387.0,0.05209654]
[1731273750361,0.062957,79383.0,79382.0,0.31491406]
[1731273750659,0.01641609,79383.0,79380.0,0.0534675]
[1731273750868,0.01641609,79382.0,79376.0,0.3608]
[1731273751053,0.2158,79390.0,79376.0,0.3608]
[1731273751054,0.01641609,79381.0,79376.0,0.3608]
[1731273751359,0.3608,79386.0,79376.0,0.3608]
[1731273751360,0.062962,79377.0,79376.0,0.3608]
[1731273751563,0.07937809,79377.0,79376.0,0.3608]
[1731273751760,0.01641609,79377.0,79373.0,0.05256064]
[1731273751962,0.01641609,79376.0,79373.0,0.05256064]
[1731273752267,0.01641609,79385.0,79374.0,0.18296191]
[1731273752451,0.01641609,79385.0,79382.0,0.3608]
[1731273752854,0.11,79390.0,79382.0,0.3608]
[1731273753062,0.01721865,79389.0,79382.0,0.3608]
[1731273753462,0.062955,79386.0,79382.0,0.3608]
[1731273753667,0.01721865,79385.0,79382.0,0.3608]
[1731273753970,0.18296191,79383.0,79372.0,0.00064]
[1731273754261,0.3608,79379.0,79371.0,0.05292655]
[1731273754458,0.3608,79372.0,79366.0,0.0018899]
[1731273754659,0.01721865,79371.0,79366.0,0.0018899]
[1731273755357,0.08018665,79370.0,79366.0,0.0018899]
[1731273755670,0.062969,79368.0,79366.0,0.0018899]
[1731273755862,0.01721865,79367.0,79366.0,0.0018899]
[1731273756566,0.01721865,79367.0,79353.0,0.02519981]
[1731273756971,0.062969,79368.0,79354.0,0.18788674]
[1731273757561,0.01721865,79367.0,79354.0,0.18788674]
[1731273757768,0.01721865,79367.0,79357.0,0.3608]
[1731273757968,0.18708,79372.0,79364.0,0.18296191]
[1731273757969,0.01721865,79369.0,79364.0,0.18296191]
[1731273758161,0.01721865,79368.0,79364.0,0.18296191]
[1731273758363,0.01721865,79371.0,79365.0,0.3608]
[1731273758557,0.01721865,79381.0,79365.0,0.80162921]
[1731273758866,0.062967,79371.0,79365.0,0.73865821]
[1731273759076,0.062968,79370.0,79365.0,0.73865821]
[1731273759560,0.01849093,79369.0,79365.0,0.73865821]
[1731273759763,0.01849093,79368.0,79365.0,0.73865821]
[1731273759962,0.01849093,79368.0,79365.0,0.54944865]
[1731273760261,0.06297,79367.0,79365.0,0.6029443]
[1731273760461,0.01849282,79366.0,79365.0,0.41429565]
[1731273760870,0.062975,79360.0,79357.0,0.36144]
[1731273761168,0.062956,79384.0,79357.0,0.36144]
[1731273761169,0.062955,79386.0,79371.0,0.062966]
[1731273761469,0.3608,79394.0,79375.0,0.3608]
[1731273761470,0.062951,79391.0,79375.0,0.3608]
[1731273761655,0.54788,79394.0,79380.0,0.062959]
[1731273761861,0.54788,79394.0,79375.0,0.3608]
[1731273762059,0.062954,79387.0,79375.0,0.3608]
[1731273762261,0.062955,79386.0,79375.0,0.3608]
[1731273762669,0.12200976,79391.0,79375.0,0.41462119]
[1731273762864,0.062956,79385.0,79375.0,0.41462119]
[1731273763965,0.18708,79392.0,79375.0,0.41462119]
[1731273764365,0.062953,79388.0,79382.0,0.3608]
[1731273764663,0.062956,79385.0,79375.0,0.41462119]
[1731273764867,0.3608,79384.0,79375.0,0.41462119]
[1731273765168,0.062955,79386.0,79377.0,0.3608]
[1731273765760,0.04366671,79385.0,79377.0,0.3608]
[1731273765963,0.04366671,79384.0,79377.0,0.3608]
[1731273766276,0.04366671,79383.0,79377.0,0.3608]
[1731273766469,0.04366671,79383.0,79377.0,0.28990504]
[1731273766675,0.062957,79383.0,79377.0,0.28990504]
[1731273766879,0.062959,79381.0,79377.0,0.28990504]
[1731273767375,0.54788,79387.0,79377.0,0.28990504]
[1731273767874,0.062955,79386.0,79377.0,0.28990504]
[1731273768263,0.062955,79386.0,79375.0,0.3608]
[1731273768674,0.062956,79384.0,79375.0,0.3608]
[1731273769569,0.062958,79382.0,79375.0,0.3608]
[1731273770080,0.54864,79387.0,79375.0,0.3608]
[1731273770264,0.54788,79387.0,79375.0,0.3608]
[1731273770676,0.610834,79387.0,79375.0,0.3608]
[1731273771168,0.062955,79386.0,79375.0,0.3608]
[1731273771567,0.07851475,79386.0,79375.0,0.3608]
[1731273771769,0.01555975,79385.0,79375.0,0.3608]
[1731273772271,0.062957,79384.0,79375.0,0.3608]
[1731273772477,0.19871975,79383.0,79375.0,0.3608]
[1731273772781,0.01555975,79382.0,79375.0,0.3608]
[1731273773700,0.18316,79383.0,79375.0,0.3608]
[1731273774479,0.01603651,79382.0,79375.0,0.3608]
[1731273774679,0.18316,79383.0,79375.0,0.3608]
[1731273774873,0.01593713,79382.0,79378.0,0.062961]
[1731273775470,0.01593713,79382.0,79379.0,0.06296]
[1731273775667,0.01593713,79382.0,79376.0,0.1061]
[1731273776180,0.18316,79383.0,79376.0,0.1061]
[1731273776372,0.0788984,79382.0,79376.0,0.1061]
[1731273776574,0.0159404,79381.0,79375.0,0.3608]
[1731273776777,0.0159404,79380.0,79375.0,0.3608]
[1731273776984,0.0159404,79379.0,79375.0,0.3608]
[1731273777875,0.0159404,79379.0,79377.0,0.062961]
[1731273778184,0.0159404,79378.0,79377.0,0.062961]
[1731273779281,0.0159404,79378.0,79377.0,0.25152774]
[1731273780381,0.0159404,79378.0,79377.0,0.062961]
[1731273780978,0.0159404,79378.0,79377.0,0.11764807]
[1731273781486,0.0159404,79378.0,79377.0,0.66750199]
[1731273782982,0.0159404,79378.0,79377.0,0.78940143]
[1731273784881,0.1117,79399.0,79377.0,0.78940143]
[1731273784882,0.062945,79398.0,79391.0,0.062951]
[1731273785183,0.0018906,79405.0,79393.0,0.3608]
[1731273785184,0.062947,79396.0,79393.0,0.3608]